bitfinex/quotes_BTCUSD_20240627
["timestamp","ask_amount","ask_price","bid_price","bid_amount"]
[1719483023527,0.17481225,61322.0,61320.0,0.01544752]
[1719483023528,0.03901225,61322.0,61320.0,0.01544752]
[1719483023729,0.1734,61323.0,61320.0,0.03717505]
[1719483023928,0.1734,61323.0,61320.0,0.02172753]
[1719483024189,0.21224742,61323.0,61320.0,0.02172753]
[1719483024337,0.21224742,61323.0,61320.0,0.03717505]
[1719483024338,0.01512998,61323.0,61320.0,0.03717505]
[1719483024537,0.11512998,61323.0,61320.0,0.02172753]
[1719483024754,0.11512998,61323.0,61320.0,0.03817505]
[1719483024955,0.012,61322.0,61320.0,0.03817505]
[1719483025161,0.012,61322.0,61320.0,0.03717505]
[1719483025382,0.012,61322.0,61320.0,0.03817505]
[1719483025590,0.01,61321.0,61320.0,0.03817505]
[1719483025809,0.01,61321.0,61320.0,0.02272753]
[1719483027050,0.012,61322.0,61320.0,0.02272753]
[1719483027467,0.1063,61323.0,61320.0,0.02272753]
[1719483027672,0.0953,61323.0,61320.0,0.02172753]
[1719483027870,0.011,61322.0,61320.0,0.02272753]
[1719483028280,0.013,61322.0,61320.0,0.02372753]
[1719483028600,0.013,61322.0,61320.0,0.02272753]
[1719483028798,0.002,61322.0,61320.0,0.02272753]
[1719483029000,0.005,61322.0,61320.0,0.02372753]
[1719483029470,0.005,61322.0,61320.0,0.02272753]
[1719483030648,0.009,61322.0,61320.0,0.001]
[1719483031081,1.32213573,61321.0,61320.0,0.001]
[1719483031296,1.64828773,61321.0,61320.0,0.001]
[1719483031558,1.442912,61321.0,61320.0,0.001]
[1719483032072,0.163085,61318.0,61314.0,0.02172753]
[1719483032274,0.1953,61317.0,61314.0,0.02172753]
[1719483033107,0.358387,61317.0,61314.0,0.02172753]
[1719483034005,0.358387,61317.0,61311.0,0.02172753]
[1719483034207,0.358387,61317.0,61314.0,0.02172753]
[1719483034832,0.2995,61315.0,61310.0,0.02172753]
[1719483035037,0.2995,61315.0,61309.0,0.02172753]
[1719483035038,0.0953,61311.0,61309.0,0.02172753]
[1719483035249,0.0953,61311.0,61307.0,0.02172753]
[1719483035250,0.258403,61311.0,61307.0,0.02172753]
[1719483037450,0.163105,61310.0,61307.0,0.02172753]
[1719483038037,0.163105,61310.0,61307.0,0.02272753]
[1719483038235,0.163105,61310.0,61307.0,0.02172753]
[1719483038441,0.02815832,61310.0,61307.0,0.02172753]
[1719483038647,0.02815832,61310.0,61308.0,0.02172753]
[1719483039295,0.3006,61309.0,61307.0,0.02472753]
[1719483039515,0.25841,61308.0,61307.0,0.002]
[1719483040378,1.030877,61308.0,61307.0,0.002]
[1719483040911,0.909603,61308.0,61307.0,0.002]
[1719483041103,0.909603,61308.0,61306.0,0.02172753]
[1719483041304,0.473956,61307.0,61306.0,0.02172753]
[1719483042436,0.480956,61307.0,61306.0,0.02272753]
[1719483042855,0.473956,61307.0,61306.0,0.02172753]
[1719483043735,0.478956,61307.0,61304.0,0.000924]
[1719483043935,0.005,61307.0,61306.0,0.02172753]
[1719483044303,0.664915,61307.0,61306.0,0.001]
[1719483044614,0.664915,61307.0,61304.0,0.000924]
[1719483044815,0.174115,61307.0,61306.0,0.02172753]
[1719483045034,0.856875,61307.0,61306.0,0.02172753]
[1719483045230,0.833135,61307.0,61306.0,0.02172753]
[1719483045491,0.773689,61307.0,61306.0,0.02172753]
[1719483045696,0.777689,61307.0,61306.0,0.02172753]
[1719483046017,0.777689,61307.0,61306.0,0.02272753]
[1719483046018,0.783689,61307.0,61306.0,0.02272753]
[1719483046795,0.777689,61307.0,61306.0,0.02172753]
[1719483048025,0.163116,61306.0,61304.0,0.000924]
[1719483048846,0.24656593,61307.0,61304.0,0.000924]
[1719483049059,1.219992,61305.0,61304.0,0.000924]
[1719483049269,1.917724,61305.0,61304.0,0.00087237]
[1719483049480,1.872724,61305.0,61304.0,0.00087237]
[1719483050493,1.88119985,61305.0,61304.0,0.00087237]
[1719483050723,1.88120028,61305.0,61304.0,0.00087237]
[1719483051090,1.32576828,61305.0,61304.0,0.00087237]
[1719483051310,2.47270528,61305.0,61304.0,0.00087237]
[1719483051503,2.29270528,61305.0,61304.0,0.00087237]
[1719483051731,1.96646828,61305.0,61304.0,0.00087237]
[1719483051932,1.06283128,61305.0,61304.0,0.00087237]
[1719483052135,0.103,61305.0,61304.0,0.01631989]
[1719483052504,0.103,61305.0,61304.0,0.00087237]
[1719483052505,0.003,61305.0,61304.0,0.00087237]
[1719483052747,0.003,61305.0,61304.0,0.01254743]
[1719483052927,0.003,61305.0,61304.0,0.01643911]
[1719483054923,0.003,61305.0,61304.0,0.01254379]
[1719483055161,0.003,61305.0,61304.0,0.01642937]
[1719483056482,0.003,61305.0,61304.0,0.03187689]
[1719483057242,0.003,61305.0,61304.0,0.32288764]
[1719483058358,0.003,61305.0,61304.0,0.32677689]
[1719483059910,0.003,61305.0,61304.0,0.01642937]
[1719483060170,0.003,61305.0,61304.0,0.00087237]
[1719483060171,0.19579851,61305.0,61304.0,0.00087237]
[1719483060398,2.656794,61305.0,61304.0,0.00087237]
[1719483060631,2.330557,61305.0,61304.0,0.00087237]
[1719483060900,1.642119,61305.0,61304.0,0.00087237]
[1719483061887,1.65059503,61305.0,61304.0,0.00087237]
[1719483062818,1.65059449,61305.0,61304.0,0.00087237]
[1719483063311,1.65059482,61305.0,61304.0,0.00087237]
[1719483063510,1.30551182,61305.0,61304.0,0.00087237]
[1719483063745,1.24107782,61305.0,61304.0,0.00087237]
[1719483063970,0.11147582,61305.0,61304.0,0.33151989]
[1719483064192,0.11147582,61305.0,61304.0,0.37770086]
[1719483064390,0.003,61305.0,61304.0,0.36880374]
[1719483064592,0.003,61305.0,61304.0,0.37880374]
[1719483065395,0.003,61305.0,61304.0,0.36880374]
[1719483065579,0.001,61305.0,61304.0,0.36880374]
[1719483065712,0.003,61305.0,61304.0,0.36880374]
[1719483066130,0.13153652,61311.0,61304.0,0.36880374]
[1719483066345,0.13153652,61311.0,61310.0,0.01544752]
[1719483066781,0.13153652,61311.0,61310.0,0.03099255]
[1719483066983,0.1221901,61312.0,61311.0,0.01544752]
[1719483067199,0.1221901,61317.0,61315.0,0.01544752]
[1719483067339,0.1221901,61319.0,61317.0,0.03717505]
[1719483067539,0.1230301,61321.0,61320.0,0.01544752]
[1719483068145,0.1230301,61321.0,61320.0,0.02230902]
[1719483068538,0.03194761,61321.0,61320.0,0.02230902]
[1719483069201,0.13194761,61321.0,61320.0,0.02230902]
[1719483069424,0.13594761,61321.0,61320.0,0.0068615]
[1719483069614,0.75694573,61321.0,61320.0,0.0068615]
[1719483069756,1.69592273,61321.0,61320.0,0.0068615]
[1719483069957,1.69592273,61321.0,61315.0,0.01544752]
[1719483070186,0.45387,61320.0,61318.0,0.02172753]
[1719483070638,0.46234311,61320.0,61318.0,0.02172753]
[1719483070842,0.46234311,61320.0,61315.0,0.01544752]
[1719483070843,0.36331686,61319.0,61315.0,0.01544752]
[1719483071052,0.36331686,61319.0,61314.0,0.02172753]
[1719483071053,0.12218576,61317.0,61313.0,0.02172753]
[1719483071257,0.02832686,61319.0,61297.0,0.72582074]
[1719483071258,0.24439646,61315.0,61312.0,0.02172753]
[1719483071464,0.473395,61314.0,61312.0,0.02172753]
[1719483071678,0.163097,61313.0,61310.0,0.01544752]
[1719483071879,0.163097,61313.0,61306.0,0.02172753]
[1719483071880,0.326196,61313.0,61306.0,0.02172753]
[1719483072012,0.326196,61313.0,61307.0,0.02172753]
[1719483072013,0.16311,61309.0,61307.0,0.02172753]
[1719483072223,0.262877,61308.0,61307.0,0.02172753]
[1719483073033,0.428746,61309.0,61307.0,0.02172753]
[1719483074752,0.00084,61308.0,61307.0,0.02172753]
[1719483074954,0.00084,61308.0,61304.0,0.00087237]
[1719483074955,1.121492,61305.0,61304.0,0.00087237]
[1719483075158,3.503808,61305.0,61304.0,0.00087237]
[1719483075361,1.22996796,61305.0,61304.0,0.00087237]
[1719483075537,3.61228396,61305.0,61304.0,0.00087237]
[1719483075748,1.48856599,61305.0,61304.0,0.00087237]
[1719483075946,1.34183784,61305.0,61304.0,0.00087237]
[1719483076263,3.43857084,61305.0,61304.0,0.00087237]
[1719483076431,3.28397184,61305.0,61304.0,0.00087237]
[1719483076624,3.77254782,61305.0,61304.0,0.00087237]
[1719483077349,3.77754782,61305.0,61304.0,0.00187237]
[1719483077551,3.97754782,61305.0,61304.0,0.00187237]
[1719483078351,3.97754817,61305.0,61304.0,0.00187237]
[1719483078763,4.14263301,61305.0,61304.0,0.00187237]
[1719483078961,3.97754817,61305.0,61304.0,0.00187237]
[1719483079169,4.34264053,61305.0,61304.0,0.00187237]
[1719483079372,4.37479542,61305.0,61304.0,0.00187237]
[1719483079596,4.20972445,61305.0,61304.0,0.00187237]
[1719483080250,4.53596145,61305.0,61304.0,0.00187237]
[1719483080481,0.489475,61290.0,61289.0,0.02172753]
[1719483080685,0.489475,61290.0,61284.0,0.50954827]
[1719483080686,0.489516,61285.0,61284.0,0.50954827]
[1719483080893,0.489516,61285.0,61284.0,0.02172753]
[1719483081519,0.163172,61285.0,61284.0,0.02172753]
[1719483082330,0.167172,61285.0,61284.0,0.02172753]
[1719483082954,0.171172,61285.0,61284.0,0.02172753]
[1719483083406,0.19675929,61285.0,61284.0,0.03717505]
[1719483083609,0.03358729,61285.0,61284.0,0.03717505]
[1719483083745,0.03358729,61285.0,61284.0,0.01544752]
[1719483083951,0.03358729,61285.0,61284.0,0.02172753]
[1719483084473,0.03358729,61285.0,61284.0,0.03717505]
[1719483084619,0.03358729,61285.0,61284.0,0.33727505]
[1719483084823,0.03358729,61285.0,61284.0,0.34521515]
[1719483085764,0.02958729,61285.0,61284.0,0.34521515]
[1719483086115,0.02558729,61285.0,61284.0,0.34521515]
[1719483086526,0.02558729,61285.0,61284.0,0.34721515]
[1719483086731,0.02858729,61285.0,61284.0,0.34721515]
[1719483086927,0.02858729,61285.0,61284.0,0.34521515]
[1719483087330,0.02858729,61285.0,61284.0,0.34921515]
[1719483088291,0.02558729,61285.0,61284.0,0.34921515]
[1719483089546,0.02558729,61285.0,61284.0,0.04911515]
[1719483090130,0.02558729,61285.0,61284.0,0.05311515]
[1719483092194,0.02558729,61285.0,61284.0,0.04911515]
[1719483092549,0.02658729,61285.0,61284.0,0.04911515]
[1719483092751,0.02558729,61285.0,61284.0,0.04911515]
[1719483092971,0.07575182,61285.0,61284.0,0.04911515]
[1719483093170,0.07575182,61285.0,61284.0,0.05111515]
[1719483094033,0.07575182,61285.0,61284.0,0.04911515]
[1719483094034,0.02558729,61285.0,61284.0,0.04911515]
[1719483094442,0.02558729,61285.0,61284.0,0.04511515]
[1719483095012,0.02558729,61285.0,61284.0,0.02966763]
[1719483095210,0.02658729,61285.0,61284.0,0.04511515]
[1719483095412,0.02658729,61285.0,61284.0,0.04711515]
[1719483095821,0.02658729,61285.0,61284.0,0.04511515]
[1719483096020,0.02558729,61285.0,61284.0,0.04511515]
[1719483096225,0.02658729,61285.0,61284.0,0.04511515]
[1719483096426,0.02558729,61285.0,61284.0,0.04511515]
[1719483097452,0.02658729,61285.0,61284.0,0.04511515]
[1719483097781,0.001,61285.0,61284.0,0.04511515]
[1719483098382,0.003,61285.0,61284.0,0.04511515]
[1719483098886,0.002,61285.0,61284.0,0.04511515]
[1719483099499,0.163158,61290.0,61289.0,0.02172753]
[1719483101855,0.163158,61290.0,61287.0,0.02172753]
[1719483102054,0.170158,61290.0,61289.0,0.02272753]
[1719483102848,0.163158,61290.0,61289.0,0.02172753]
[1719483103384,0.167158,61290.0,61289.0,0.02172753]
[1719483103811,0.163158,61290.0,61289.0,0.02172753]
[1719483104214,0.170158,61290.0,61289.0,0.02172753]
[1719483105153,0.167158,61290.0,61289.0,0.02172753]
[1719483105553,0.167158,61290.0,61289.0,0.03717505]
[1719483105554,0.004,61290.0,61289.0,0.03717505]
[1719483105959,0.004,61290.0,61289.0,0.04507371]
[1719483106405,0.007,61290.0,61289.0,0.04507371]
[1719483107001,0.003,61290.0,61289.0,0.04507371]
[1719483108209,0.1,61292.0,61289.0,0.04507371]
[1719483108378,0.1,61292.0,61291.0,0.01544752]
[1719483108560,0.1,61292.0,61289.0,0.02172753]
[1719483108765,0.1683,61291.0,61288.0,0.02172753]
[1719483109005,0.1683,61291.0,61289.0,0.00789201]
[1719483109006,0.52112084,61291.0,61289.0,0.00789201]
[1719483109213,0.52112084,61291.0,61289.0,0.02961954]
[1719483109385,0.003,61290.0,61289.0,0.02172753]
[1719483109753,0.25842644,61290.0,61289.0,0.02172753]
[1719483109936,0.26042644,61290.0,61289.0,0.02172753]
[1719483110539,0.42358444,61290.0,61289.0,0.02172753]
[1719483111121,1.59681542,61290.0,61284.0,0.000924]
[1719483111324,0.163172,61285.0,61284.0,0.000924]
[1719483111643,0.81059081,61285.0,61284.0,0.000924]
[1719483111802,1.00494481,61285.0,61284.0,0.000924]
[1719483112954,1.01391167,61285.0,61284.0,0.000924]
[1719483113163,1.27628071,61285.0,61284.0,0.004924]
[1719483113524,1.113947,61285.0,61284.0,0.004924]
[1719483113735,1.113947,61285.0,61284.0,0.008924]
[1719483114913,1.113947,61285.0,61284.0,0.004924]
[1719483115117,1.117947,61285.0,61284.0,0.004924]
[1719483116616,1.117947,61285.0,61284.0,0.000924]
[1719483117271,1.120947,61285.0,61284.0,0.000924]
[1719483117430,1.28328071,61285.0,61284.0,0.000924]
[1719483117635,1.26741105,61285.0,61284.0,0.000924]
[1719483117836,1.120947,61285.0,61284.0,0.000924]
[1719483118191,1.93597398,61285.0,61284.0,0.000924]
[1719483118315,1.51880798,61285.0,61284.0,0.000924]
[1719483118520,3.26060198,61285.0,61284.0,0.000924]
[1719483118745,3.42293569,61285.0,61284.0,0.000924]
[1719483119163,3.26285769,61285.0,61284.0,0.000924]
[1719483119395,3.2538555,61285.0,61284.0,0.000924]
[1719483119666,3.10060519,61285.0,61284.0,0.000924]
[1719483119884,3.09152179,61285.0,61284.0,0.000924]
[1719483120066,3.10061113,61285.0,61284.0,0.000924]
[1719483120506,2.66726713,61285.0,61284.0,0.000924]
[1719483120797,2.30492313,61285.0,61284.0,0.000924]
[1719483121004,1.51526168,61285.0,61284.0,0.000924]
[1719483121882,0.62660834,61285.0,61284.0,0.000924]
[1719483122108,0.11607428,61285.0,61284.0,0.000924]
[1719483122324,0.01607428,61285.0,61284.0,0.000924]
[1719483122525,0.01607428,61285.0,61284.0,0.02790931]
[1719483122768,0.01607428,61285.0,61284.0,0.000924]
[1719483123166,0.04628475,61285.0,61284.0,0.01246179]
[1719483123375,0.007,61285.0,61284.0,0.01246179]
[1719483123772,0.149368,61285.0,61284.0,0.01246179]
[1719483123975,0.249368,61285.0,61284.0,0.01246179]
[1719483124175,0.107,61285.0,61284.0,0.01246179]
[1719483124354,0.103,61285.0,61284.0,0.01246179]
[1719483124558,0.1,61285.0,61284.0,0.01246179]
[1719483124777,0.103,61285.0,61284.0,0.01246179]
[1719483124982,0.006,61285.0,61284.0,0.01246179]
[1719483125341,0.003,61285.0,61284.0,0.01246179]
[1719483125546,0.1,61288.0,61284.0,0.01446179]
[1719483126024,0.216668,61287.0,61284.0,0.004924]
[1719483126169,0.1,61286.0,61284.0,0.004924]
[1719483126523,0.1,61286.0,61285.0,0.01153591]
[1719483126732,0.251368,61286.0,61285.0,0.01153591]
[1719483127064,0.151368,61286.0,61285.0,0.01153591]
[1719483127426,0.03837023,61289.0,61287.0,0.2951]
[1719483127427,0.00915642,61289.0,61287.0,0.2951]
[1719483127627,0.00915642,61289.0,61288.0,0.33553824]
[1719483127628,0.0392449,61289.0,61288.0,0.33553824]
[1719483127846,0.281,61293.0,61292.0,0.33227505]
[1719483128195,0.281,61293.0,61292.0,0.34378124]
[1719483128822,0.276,61293.0,61292.0,0.34378124]
[1719483129444,0.283,61293.0,61292.0,0.34478124]
[1719483129673,0.276,61293.0,61292.0,0.34378124]
[1719483129880,0.43915,61293.0,61292.0,0.01150619]
[1719483130059,0.70702,61293.0,61292.0,0.01450619]
[1719483130259,1.033321,61293.0,61292.0,0.003]
[1719483130664,0.54387,61293.0,61292.0,0.003]
[1719483130868,0.377,61293.0,61292.0,0.007]
[1719483131387,0.377,61293.0,61292.0,0.004]
[1719483131388,0.54015,61293.0,61292.0,0.004]
[1719483131539,0.377,61293.0,61292.0,0.004]
[1719483131744,0.378,61293.0,61292.0,0.01]
[1719483132148,0.377,61293.0,61292.0,0.006]
[1719483132552,0.376,61293.0,61290.0,0.03717505]
[1719483132930,0.384,61293.0,61292.0,0.001]
[1719483133136,0.384,61293.0,61291.0,0.01544752]
[1719483133560,0.384,61293.0,61290.0,0.03717505]
[1719483134519,0.384,61293.0,61291.0,0.01544752]
[1719483134732,0.384,61293.0,61290.0,0.02172753]
[1719483134733,0.399,61293.0,61292.0,0.002]
[1719483134895,0.71445,61293.0,61292.0,0.001]
[1719483135090,3.24311969,61293.0,61292.0,0.001]
[1719483135288,3.24311969,61293.0,61279.0,0.01544752]
[1719483135289,2.95466869,61293.0,61290.0,0.001]
[1719483135490,0.489468,61291.0,61290.0,0.001]
[1719483135864,0.489468,61291.0,61284.0,0.02265153]
[1719483135865,0.16317,61286.0,61284.0,0.02265153]
[1719483136035,1.098717,61285.0,61284.0,0.000924]
[1719483136711,1.198717,61285.0,61284.0,0.000924]
[1719483136892,1.67185751,61285.0,61284.0,0.000924]
[1719483137592,1.717267,61285.0,61284.0,0.000924]
[1719483137803,1.54612816,61285.0,61284.0,0.000924]
[1719483137957,1.69292147,61285.0,61284.0,0.000924]
[1719483138159,1.69291696,61285.0,61284.0,0.000924]
[1719483138357,1.54612816,61285.0,61284.0,0.000924]
[1719483138722,1.54612816,61285.0,61284.0,0.003924]
[1719483138924,1.87247216,61285.0,61284.0,0.003924]
[1719483139225,2.01925688,61285.0,61284.0,0.003924]
[1719483139428,1.87247216,61285.0,61284.0,0.000924]
[1719483139804,1.9459971,61285.0,61284.0,0.003924]
[1719483139918,2.43468008,61285.0,61284.0,0.003924]
[1719483140119,3.06976015,61285.0,61284.0,0.003924]
[1719483140523,2.86976015,61285.0,61284.0,0.003924]
[1719483141188,2.86976015,61285.0,61284.0,0.000924]
[1719483141572,2.87276015,61285.0,61284.0,0.000924]
[1719483141779,2.71692255,61285.0,61284.0,0.000924]
[1719483141950,2.87262123,61285.0,61284.0,0.000924]
[1719483142959,2.82347307,61285.0,61284.0,0.000924]
[1719483143152,2.72585487,61285.0,61284.0,0.000924]
[1719483143332,2.71692255,61285.0,61284.0,0.000924]
[1719483144178,2.72582547,61285.0,61284.0,0.000924]
[1719483147378,2.7566311,61285.0,61284.0,0.000924]
[1719483147904,2.75661919,61285.0,61284.0,0.000924]
[1719483148764,2.74774248,61285.0,61284.0,0.000924]
[1719483148966,2.75666954,61285.0,61284.0,0.000924]
[1719483149346,2.90342789,61285.0,61284.0,0.000924]
[1719483150432,2.94774248,61285.0,61284.0,0.000924]
[1719483150635,3.1033986,61285.0,61284.0,0.000924]
[1719483151525,0.163201,61274.0,61273.0,0.1279]
[1719483151887,0.163201,61274.0,61273.0,0.13982214]
[1719483152082,0.163201,61274.0,61273.0,0.1279]
[1719483152246,0.163201,61274.0,61273.0,0.13982214]
[1719483152847,0.163201,61274.0,61273.0,0.16154967]
[1719483153123,0.163201,61274.0,61273.0,0.14082214]
[1719483153896,0.489603,61274.0,61273.0,0.14082214]
[1719483155729,0.489603,61274.0,61273.0,0.01292214]
[1719483155933,0.489603,61274.0,61273.0,0.001]
[1719483156133,0.49851839,61274.0,61273.0,0.001]
[1719483156682,1.7194758,61274.0,61273.0,0.01305799]
[1719483156893,4.2918708,61274.0,61273.0,0.001]
[1719483157049,4.62469427,61274.0,61273.0,0.001]
[1719483157246,4.7919759,61274.0,61273.0,0.001]
[1719483157478,4.79197097,61274.0,61273.0,0.001]
[1719483157884,0.816032,61272.0,61271.0,0.00924]
[1719483158087,0.916032,61272.0,61271.0,0.00924]
[1719483158704,1.011432,61272.0,61271.0,0.00924]
[1719483158899,5.79976623,61272.0,61271.0,0.00400001]
[1719483159139,0.16323,61263.0,61257.0,0.03717505]
[1719483159430,0.685091,61263.0,61262.0,0.32573015]
[1719483160219,0.69420968,61263.0,61262.0,0.32573015]
[1719483160594,0.92527068,61263.0,61262.0,0.32573015]
[1719483161478,0.92827068,61263.0,61262.0,0.32573015]
[1719483162049,0.919152,61263.0,61262.0,0.32573015]
[1719483162246,0.99994804,61263.0,61262.0,0.32573015]
[1719483162450,0.99994804,61263.0,61262.0,0.15963015]
[1719483162451,1.32640904,61263.0,61262.0,0.15963015]
[1719483162623,1.32640904,61263.0,61262.0,0.02133015]
[1719483163149,1.32940904,61263.0,61262.0,0.02133015]
[1719483163489,1.60540904,61263.0,61262.0,0.02133015]
[1719483163700,1.524613,61263.0,61262.0,0.02133015]
[1719483165438,1.528113,61263.0,61262.0,0.02133015]
[1719483168171,1.528113,61263.0,61262.0,0.009229]
[1719483168371,1.528113,61263.0,61262.0,0.02133015]
[1719483169606,2.459182,61263.0,61262.0,0.009229]
[1719483169809,2.62151571,61263.0,61262.0,0.009229]
[1719483170368,2.78385469,61263.0,61262.0,0.009229]
[1719483170570,2.79282227,61263.0,61262.0,0.009229]
[1719483170970,2.82268446,61263.0,61262.0,0.009229]
[1719483172939,2.81371688,61263.0,61262.0,0.009229]
[1719483173291,2.82257467,61263.0,61262.0,0.009229]
[1719483174010,2.82260336,61263.0,61262.0,0.009229]
[1719483174434,2.66026965,61263.0,61262.0,0.009229]
[1719483174648,1.34404939,61263.0,61262.0,0.32117652]
[1719483174854,0.006,61263.0,61262.0,0.34290405]
[1719483175075,0.006,61263.0,61262.0,0.35544996]
[1719483175787,0.02949522,61265.0,61264.0,0.03717505]
[1719483175984,0.0162,61272.0,61271.0,0.32837505]
[1719483176216,0.0162,61272.0,61271.0,0.49071403]
[1719483176422,0.2795,61277.0,61273.0,0.34197505]
[1719483176626,0.2795,61277.0,61273.0,0.35446844]
[1719483178378,0.164041,61274.0,61273.0,0.33902092]
[1719483179301,0.164041,61274.0,61273.0,0.34102092]
[1719483179800,0.164041,61274.0,61273.0,0.35646844]
[1719483179801,0.00084,61274.0,61273.0,0.35646844]
[1719483180041,0.00084,61274.0,61273.0,0.34102092]
[1719483180391,0.00084,61274.0,61273.0,0.35646844]
[1719483181144,0.00184,61274.0,61273.0,0.35646844]
[1719483181522,0.00084,61274.0,61273.0,0.35646844]
[1719483181656,0.00084,61274.0,61273.0,0.36646844]
[1719483182118,0.00084,61274.0,61273.0,0.36446844]
[1719483182529,0.00184,61274.0,61273.0,0.36446844]
[1719483183075,0.00084,61274.0,61273.0,0.36446844]
[1719483183467,0.00084,61274.0,61273.0,0.35646844]
[1719483186330,1.79395455,61274.0,61273.0,0.01449339]
[1719483186528,1.87123655,61274.0,61273.0,0.01449339]
[1719483186756,1.87123655,61274.0,61273.0,0.002]
[1719483187318,2.03357553,61274.0,61273.0,0.002]
[1719483187942,1.95369798,61274.0,61273.0,0.002]
[1719483188351,0.81606,61270.0,61269.0,0.02172753]
[1719483188836,0.84165545,61270.0,61269.0,0.02172753]
[1719483189709,0.16322,61267.0,61266.0,0.02172753]
[1719483189943,0.48966,61267.0,61266.0,0.02172753]
[1719483192495,0.48966,61267.0,61266.0,0.02372753]
[1719483194987,0.16322,61267.0,61266.0,0.02372753]
[1719483195903,0.16322,61267.0,61266.0,0.03917505]
[1719483196107,0.16322,61267.0,61266.0,0.02372753]
[1719483196312,0.16322,61267.0,61266.0,0.03917505]
[1719483196648,0.16322,61267.0,61266.0,0.02372753]
[1719483200551,0.46252,61267.0,61266.0,0.02372753]
[1719483200743,1.38927538,61267.0,61266.0,0.002]
[1719483200898,1.81571538,61267.0,61266.0,0.002]
[1719483202046,0.489691,61263.0,61261.0,0.009229]
[1719483202219,0.589691,61263.0,61261.0,0.009229]
[1719483202426,0.589691,61263.0,61261.0,0.03095653]
[1719483202620,1.07848571,61263.0,61261.0,0.009229]
[1719483204125,1.08148571,61263.0,61261.0,0.009229]
[1719483204552,1.64828371,61263.0,61261.0,0.009229]
[1719483204775,1.65128371,61263.0,61261.0,0.009229]
[1719483205827,1.82488371,61263.0,61261.0,0.009229]
[1719483209205,2.10438371,61263.0,61261.0,0.009229]
[1719483212131,1.94205,61263.0,61261.0,0.009229]
[1719483212537,1.612547,61263.0,61261.0,0.009229]
[1719483212830,1.631042,61263.0,61261.0,0.009229]
[1719483214693,1.728025,61263.0,61261.0,0.009229]
[1719483214808,1.707947,61263.0,61261.0,0.009229]
[1719483215652,1.76087225,61263.0,61261.0,0.009229]
[1719483216375,1.707947,61263.0,61261.0,0.009229]
[1719483221482,0.875191,61263.0,61261.0,0.009229]
[1719483221687,1.091483,61263.0,61262.0,0.01773104]
[1719483221886,1.020118,61263.0,61262.0,0.31363104]
[1719483222086,0.875191,61263.0,61262.0,0.31363104]
[1719483223897,0.875191,61263.0,61262.0,0.32907856]
[1719483224121,0.875191,61263.0,61262.0,0.31363104]
[1719483226293,0.984086,61263.0,61262.0,0.31363104]
[1719483226500,0.875191,61263.0,61262.0,0.31363104]
[1719483226873,0.982953,61263.0,61262.0,0.31363104]
[1719483227090,0.875191,61263.0,61262.0,0.31363104]
[1719483228906,0.875191,61263.0,61262.0,0.14763104]
[1719483229108,1.307505,61263.0,61262.0,0.14763104]
[1719483229465,1.307505,61263.0,61262.0,0.139129]
[1719483230274,1.42003815,61263.0,61262.0,0.009229]
[1719483230477,1.72890224,61263.0,61262.0,0.009229]
[1719483230741,1.58203815,61263.0,61262.0,0.009229]
[1719483231511,1.42003815,61263.0,61262.0,0.009229]
[1719483232133,1.307505,61263.0,61262.0,0.009229]
[1719483234562,0.98154993,61263.0,61262.0,0.009229]
[1719483234784,1.14477993,61263.0,61262.0,0.009229]
[1719483236457,1.15445371,61263.0,61262.0,0.009229]
[1719483236651,1.25445371,61263.0,61262.0,0.009229]
[1719483239086,1.24477993,61263.0,61262.0,0.009229]
[1719483239293,1.25439719,61263.0,61262.0,0.009229]
[1719483239902,1.58085819,61263.0,61262.0,0.009229]
[1719483240299,2.07175819,61263.0,61262.0,0.009229]
[1719483240685,1.91572585,61263.0,61262.0,0.009229]
[1719483241408,1.86214093,61263.0,61262.0,0.009229]
[1719483241628,1.91577387,61263.0,61262.0,0.00739094]
[1719483241812,1.78967387,61263.0,61262.0,0.00739094]
[1719483242053,1.78973313,61263.0,61262.0,0.00739094]
[1719483244587,1.73604093,61263.0,61262.0,0.00739094]
[1719483244788,1.78991398,61263.0,61262.0,0.00739094]
[1719483245356,1.7905582,61263.0,61262.0,0.00739094]
[1719483245992,1.62511398,61263.0,61262.0,0.00739094]
[1719483246196,1.7905582,61263.0,61262.0,0.00739094]
[1719483247102,1.4640972,61263.0,61262.0,0.00739094]
[1719483247288,1.25443096,61263.0,61262.0,0.30429094]
[1719483247716,1.14857796,61263.0,61262.0,0.30429094]
[1719483248058,1.6376452,61263.0,61262.0,0.30429094]
[1719483248273,1.6376452,61263.0,61262.0,0.31280799]
[1719483248406,1.3111842,61263.0,61262.0,0.30429094]
[1719483248608,0.9691952,61263.0,61262.0,0.30429094]
[1719483249180,1.5609682,61263.0,61262.0,0.31280661]
[1719483249500,1.5609682,61263.0,61262.0,0.30429094]
[1719483249900,1.33819327,61263.0,61262.0,0.30429094]
[1719483251039,1.33811954,61263.0,61262.0,0.30429094]
[1719483251433,1.181464,61263.0,61262.0,0.30429094]
[1719483251661,1.33811751,61263.0,61262.0,0.30429094]
[1719483252567,1.09840464,61263.0,61262.0,0.30429094]
[1719483254319,1.07280677,61263.0,61262.0,0.30429094]
[1719483254515,0.916152,61263.0,61262.0,0.30429094]
[1719483254739,0.92573679,61263.0,61262.0,0.3128028]
[1719483255650,1.09619279,61263.0,61262.0,0.0159028]
[1719483256079,1.09619279,61263.0,61262.0,0.00739094]
[1719483257665,1.24326502,61263.0,61262.0,0.00739094]
[1719483258424,1.24326583,61263.0,61262.0,0.00739094]
[1719483259608,1.24326583,61263.0,61262.0,0.30059094]
[1719483260351,1.17573083,61263.0,61262.0,0.30059094]
[1719483260553,1.07280983,61263.0,61262.0,0.31603846]
[1719483261086,0.92573679,61263.0,61262.0,0.31603846]
[1719483261583,0.92573505,61263.0,61262.0,0.30059094]
[1719483262019,0.916152,61263.0,61262.0,0.00739094]
[1719483262243,1.07280551,61263.0,61262.0,0.00739094]
[1719483263126,1.07280872,61263.0,61262.0,0.00739094]
[1719483264689,0.92573962,61263.0,61262.0,0.00739094]
[1719483264910,1.52915738,61263.0,61262.0,0.00739094]
[1719483265114,1.74508428,61263.0,61262.0,0.00739094]
[1719483265994,1.58275057,61263.0,61262.0,0.00739094]
[1719483266272,1.41455057,61263.0,61262.0,0.00739094]
[1719483267050,1.08808957,61263.0,61262.0,0.00739094]